Workbook

Sheet Acerno_Cache_XXXXX (hidden)

Sheet Sumcost Exhibits
B3: Sumcost | C3: AVISTA UTILITIES | I3: Natural Gas Utility | J3: Natural Gas Utility
B4: Company Base Case UG-19____ | C4: Cost of Service General Summary | I4: Washington Jurisdiction | J4: Washington Jurisdiction
C5: For the Twelve Months Ended December 31, 2018
B7: (b) | C7: (c) | D7: (d) | E7: (e) | F7: (f) | G7: (g) | H7: (h) | I7: (i) | J7: (i) | K7: (j)
G8: General | H8: Large General | I8: High Load Factor | J8: Interruptible | K8: Transportation
F9: System | G9: Service | H9: Service | I9: Lg. Gen. Service | J9: Service | K9: Service
B10: Description | F10: Total | G10: Sch 101 | H10: Sch 111/112 | I10: Sch 121/122 | J10: Sch 131/132 | K10: Sch 146
B11: Plant In Service
A12: 1 | B12: Production Plant
A13: 2 | B13: Underground Storage Plant | F13: =SUM(G13:K13) -> 29042000 | G13: 19734145.99 | H13: 8550079.018 | I13: 0 | J13: 150740.4356 | K13: 607034.5592
A14: 3 | B14: Distribution Plant | F14: =SUM(G14:K14) -> 494596000 | G14: 392371610 | H14: 75575383.42 | I14: 0.3553757036 | J14: 937747.6518 | K14: 25711258.61
A15: 4 | B15: Intangible Plant | F15: =SUM(G15:K15) -> 33135000 | G15: 28799770.72 | H15: 3384134.369 | I15: 0.01158929827 | J15: 41868.28826 | K15: 909226.6117
A16: 5 | B16: General Plant | F16: =SUM(G16:K16) -> 105780000 | G16: 92581113.95 | H16: 10375348.24 | I16: 0.03388177376 | J16: 128316.4207 | K16: 2695221.362
A17: 6 | B17: Total Plant In Service | F17: =SUM(F13:F16) -> 662553000 | G17: 533486640.6 | H17: 97884945.04 | I17: 0.4008467757 | J17: 1258672.796 | K17: 29922741.14
B19: Accum Depreciation
A20: 7 | B20: Production Plant
A21: 8 | B21: Underground Storage Plant | F21: =SUM(G21:K21) -> -11482000 | G21: -7802061.298 | H21: -3380345.957 | I21: 0 | J21: -59596.50444 | K21: -239996.2402
A22: 9 | B22: Distribution Plant | F22: =SUM(G22:K22) -> -148333000 | G22: -118631617.2 | H22: -21958127.75 | I22: -0.118225869 | J22: -272403.5749 | K22: -7470851.346
A23: 10 | B23: Intangible Plant | F23: =SUM(G23:K23) -> -10461000 | G23: -9103536.255 | H23: -1060914.361 | I23: -0.003604363459 | J23: -13124.74624 | K23: -283424.6343
A24: 11 | B24: General Plant | F24: =SUM(G24:K24) -> -24728000 | G24: -21642520.19 | H24: -2425426.462 | I24: -0.007920481201 | J24: -29996.29847 | K24: -630057.0414
A25: 12 | B25: Total Accumulated Depreciation | F25: =SUM(F21:F24) -> -195004000 | G25: -157179735 | H25: -28824814.53 | I25: -0.1297507137 | J25: -375121.124 | K25: -8624329.261
A27: 13 | B27: Net Plant | F27: =F17+F25 -> 467549000 | G27: 376306905.7 | H27: 69060130.51 | I27: 0.271096062 | J27: 883551.6724 | K27: 21298411.88
A28: 14 | B28: Accumlulated Deferred FIT | F28: =SUM(G28:K28) -> -89888000 | G28: -72377677.19 | H28: -13279966.95 | I28: -0.05438253992 | J28: -170763.064 | K28: -4059592.75
A29: 15 | B29: Miscellaneous Rate Base | F29: =SUM(G29:K29) -> 21330000 | G29: 17327992.26 | H29: 3464074.862 | I29: 0.004112812682 | J29: 56280.40797 | K29: 481652.4664
A30: 16 | B30: Total Rate Base | F30: =SUM(F27:F29) -> 398991000 | G30: 321257220.7 | H30: 59244238.43 | I30: 0.2208263347 | J30: 769069.0164 | K30: 17720471.59
A32: 17 | B32: Revenue From Retail Rates | F32: =SUM(G32:K32) -> 91987000 | G32: 71131815.8 | H32: 17418556.98 | I32: 0 | J32: 201030.0187 | K32: 3235597.207
A33: 18 | B33: Other Operating Revenues | F33: =SUM(G33:K33) -> 2053000 | G33: 1691771.597 | H33: 259781.3285 | I33: 0.001308432499 | J33: 2948.773715 | K33: 98498.29928
A34: 19 | B34: Total Revenues | F34: =SUM(F32:F33) -> 94040000 | G34: 72823587.39 | H34: 17678338.31 | I34: 0.001308432499 | J34: 203978.7925 | K34: 3334095.506
B36: Operating Expenses
A37: 20 | B37: Purchased Gas Costs | F37: =SUM(G37:K37) -> 999000 | G37: 674600.1306 | H37: 287196.8288 | I37: 0 | J37: 4963.80182 | K37: 32239.23876
A38: 21 | B38: Underground Storage Expenses | F38: 1532000 | G38: 1040999.644 | H38: 451026.8251 | I38: 0 | J38: 7951.737049 | K38: 32021.79412
A39: 22 | B39: Distribution Expenses | F39: 12998000 | G39: 10781868.42 | H39: 1669638.95 | I39: 0.007374795377 | J39: 20599.34321 | K39: 525893.2798
A40: 23 | B40: Customer Accounting Expenses | F40: 7097000 | G40: 6880848.499 | H40: 199687.3981 | I40: 0 | J40: 944.5225417 | K40: 15519.58048
A41: 24 | B41: Customer Information Expenses | F41: 1259000 | G41: 1235218.094 | H41: 23461.25147 | I41: 0 | J41: 15.26928179 | K41: 305.3856358
A42: 25 | B42: Sales Expenses | F42: 1000 | G42: 981.1104794 | H42: 18.6348304 | I42: 0 | J42: 0.01212810309 | K42: 0.2425620618
A43: 26 | B43: Admin & General Expenses | F43: 15631000.04 | G43: 13645283.85 | H43: 1561671.216 | I43: 0.005006011665 | J43: 19291.12814 | K43: 404753.8404
A44: 27 | B44: Total O&M Expenses | F44: =SUM(F37:F43) -> 39517000.04 | G44: 34259799.75 | H44: 4192701.104 | I44: 0.01238080704 | J44: 53765.81417 | K44: 1010733.362
A46: 28 | B46: Taxes Other Than Income Taxes | F46: =SUM(G46:K46) -> 7929000 | G46: 6186443.233 | H46: 1384189.258 | I46: 0.002826646431 | J46: 16949.82495 | K46: 341417.6816
A47: 29 | B47: Depreciation Expense
A48: 30 | B48: Underground Storage Plant Depr | F48: =SUM(G48:K48) -> 426000 | G48: 289468.5693 | H48: 125416.0754 | I48: 0 | J48: 2211.122704 | K48: 8904.232568
A49: 31 | B49: Distribution Plant Depreciation | F49: =SUM(G49:K49) -> 11827000 | G49: 9443538.048 | H49: 1771252.614 | I49: 0.008090198791 | J49: 21878.37554 | K49: 590330.955
A50: 32 | B50: General Plant Depreciation | F50: =SUM(G50:K50) -> 5584000 | G50: 4887246.552 | H50: 547702.2552 | I50: 0.001788578414 | J50: 6773.670763 | K50: 142277.5202
A51: 33 | B51: Amortization of Intangible Plant | F51: =SUM(G51:K51) -> 6690000 | G51: 6172598.605 | H51: 405412.6787 | I51: 0.001353553023 | J51: 5014.753106 | K51: 106973.9622
A52: 34 | B52: Total Depr & Amort Expense | F52: =SUM(F48:F51) -> 24527000 | G52: 20792851.77 | H52: 2849783.623 | I52: 0.01123233023 | J52: 35877.92211 | K52: 848486.6699
A53: 35 | B53: Income Tax | F53: =SUM(G53:K53) -> 1832000 | G53: 516154.3179 | H53: 1198654.6 | I53: -0.004777583981 | J53: 12037.61713 | K53: 105153.4694
A54: 36 | B54: Total Operating Expenses | F54: =F44+F46+F52+F53 -> 73805000.04 | G54: 61755249.07 | H54: 9625328.585 | I54: 0.02166219972 | J54: 118631.1784 | K54: 2305791.183
A56: 37 | B56: Net Income | F56: =F34-F54 -> 20234999.96 | G56: 11068338.32 | H56: 8053009.721 | I56: -0.02035376722 | J56: 85347.6141 | K56: 1028304.323
A58: 38 | B58: Rate of Return | F58: =F56/F30 -> 0.05071542957 | G58: 0.03445319703 | H58: 0.1359289938 | I58: -0.09217092357 | J58: 0.1109752341 | K58: 0.05802917365
A59: 39 | B59: Return Ratio | F59: =F58/$F58 -> 1 | G59: 0.6793434921 | H59: 2.680229567 | I59: -1.817413839 | J59: 2.188194697 | K59: 1.144211419
A61: 40 | B61: Interest Expense | F61: =SUM(G61:K61) -> 10254000 | G61: 8256255.258 | H61: 1522566.727 | I61: 0.00567519878 | J61: 19764.9413 | K61: 455413.0688
K63: Page 1 of 4
B64: =$B$3 -> Sumcost | C64: =$C$3 -> AVISTA UTILITIES | I64: =$I$3 -> Natural Gas Utility | J64: =$I$3 -> Natural Gas Utility
B65: =$B$4 -> Company Base Case UG-19____ | C65: Summary by Function with Margin Analysis | I65: =$I$4 -> Washington Jurisdiction | J65: =$I$4 -> Washington Jurisdiction
C66: =$C$5 -> For the Twelve Months Ended December 31, 2018
B68: =$B$7 -> (b) | C68: =$C$7 -> (c) | D68: =$D$7 -> (d) | E68: =$E$7 -> (e) | F68: =$F$7 -> (f) | G68: =$G$7 -> (g) | H68: =$H$7 -> (h) | I68: =$I$7 -> (i) | J68: =$J$7 -> (i) | K68: =$K$7 -> (j)
F69: =F8 ->  | G69: General | H69: Large General | I69: High Load Factor | J69: Interruptible | K69: Transportation
F70: System | G70: Service | H70: Service | I70: Lg. Gen. Service | J70: Service | K70: Service
B71: =$B$10 -> Description | F71: Total | G71: Sch 101 | H71: Sch 111/112 | I71: Sch 121/122 | J71: Sch 131/132 | K71: Sch 146
B73: Functional Cost Components at Current Rates
A74: 1 | B74: Production | F74: =SUM(G74:K74) -> 1048467.295 | G74: 708004.1783 | H74: 301417.9001 | I74: 0 | J74: 5209.59346 | K74: 33835.62307
A75: 2 | B75: Underground Storage | F75: =SUM(G75:K75) -> 4180242.007 | G75: 2269867.381 | H75: 1798920.877 | I75: 0 | J75: 28180.08505 | K75: 83273.66361
A76: 3 | B76: Distribution | F76: =SUM(G76:K76) -> 53535057.99 | G76: 39813404.97 | H76: 11300473.46 | I76: 0.01314467069 | J76: 121380.7341 | K76: 2299798.814
A77: 4 | B77: Common | F77: =SUM(G77:K77) -> 33223232.73 | G77: 28340539.27 | H77: 4017744.738 | I77: 0.007209096527 | J77: 46259.6061 | K77: 818689.1064
A78: 5 | B78: Total Current Rate Revenue | F78: =SUM(F74:F77) -> 91987000.02 | G78: 71131815.8 | H78: 17418556.98 | I78: 0.02035376722 | J78: 201030.0187 | K78: 3235597.207
A79: 6 | B79: Exclude Cost of Gas w / Revenue Exp. | F79: =SUM(G79:K79) -> 0 | G79: 0 | H79: 0 | I79: 0 | J79: 0 | K79: 0
A80: 7 | B80: Total Margin Revenue at Current Rates | F80: =F78-F79 -> 91987000.02 | G80: 71131815.8 | H80: 17418556.98 | I80: 0.02035376722 | J80: 201030.0187 | K80: 3235597.207
B82: Margin per Therm at Current Rates
A83: 8 | B83: Production | F83: 0.004734254826 | G83: 0.00548900104 | H83: 0.005393550389 | I83: 0 | J83: 0.005287494111 | K83: 0.0009502270245
A84: 9 | B84: Underground Storage | F84: 0.0188754871 | G84: 0.01759778373 | H84: 0.03218976177 | I84: 0 | J84: 0.02860147051 | K84: 0.002338626524
A85: 10 | B85: Distribution | F85: 0.2417324869 | G85: 0.3086645926 | H85: 0.2022098655 | I85: 0 | J85: 0.1231957775 | K85: 0.06458669252
A86: 11 | B86: Common | F86: 0.1500163626 | G86: 0.2197179823 | H86: 0.07189323756 | I86: 0 | J86: 0.04695134019 | K86: 0.02299175966
A87: 12 | B87: Total Current Margin Melded Rate per Therm | F87: =SUM(F83:F86) -> 0.4153585915 | G87: 0.5514693597 | H87: 0.3116864152 | I87: 0 | J87: 0.2040360823 | K87: 0.09086730572
B89: Functional Cost Components at Uniform Current Return
A90: 13 | B90: Production | F90: =SUM(G90:K90) -> 1048467.295 | G90: 708004.1783 | H90: 301417.9001 | I90: 0 | J90: 5209.59346 | K90: 33835.62307
A91: 14 | B91: Underground Storage | F91: =SUM(G91:K91) -> 3784375.757 | G91: 2571497.268 | H91: 1114135.106 | I91: 0 | J91: 19642.53323 | K91: 79100.84945
A92: 15 | B92: Distribution | F92: =SUM(G92:K92) -> 53212221.6 | G92: 44285332.77 | H92: 6681123.396 | I92: 0.0291577829 | J92: 80843.90028 | K92: 2164921.51
A93: 16 | B93: Common | F93: =SUM(G93:K93) -> 33941935.34 | G93: 30056442.37 | H93: 3050972.995 | I93: 0.01003599834 | J93: 37767.65667 | K93: 796752.3073
A94: 17 | B94: Total Uniform Current Cost | F94: =SUM(F90:F93) -> 91987000 | G94: 77621276.59 | H94: 11147649.4 | I94: 0.03919378124 | J94: 143463.6836 | K94: 3074610.29
A95: 18 | B95: Exclude Cost of Gas w / Revenue Exp. | F95: =SUM(G95:K95) -> 0 | G95: 0 | H95: 0 | I95: 0 | J95: 0 | K95: 0
A96: 19 | B96: Total Uniform Current Margin | F96: =F94-F95 -> 91987000 | G96: =G94-G95 -> 77621276.59 | H96: =H94-H95 -> 11147649.4 | I96: =I94-I95 -> 0.03919378124 | J96: =J94-J95 -> 143463.6836 | K96: =K94-K95 -> 3074610.29
B98: Margin per Therm at Uniform Current Return
A99: 20 | B99: Production | F99: 0.004734254826 | G99: 0.00548900104 | H99: 0.005393550389 | I99: 0 | J99: 0.005287494111 | K99: 0.0009502270245
A100: 21 | B100: Underground Storage | F100: 0.01708799052 | G100: 0.01993625406 | H100: 0.01993625406 | I100: 0 | J100: 0.01993625406 | K100: 0.002221438767
A101: 22 | B101: Distribution | F101: 0.2402747498 | G101: 0.3433344676 | H101: 0.1195515451 | I101: 0 | J101: 0.08205278395 | K101: 0.06079884861
A102: 23 | B102: Common | F102: 0.1532615962 | G102: 0.2330210026 | H102: 0.05459389299 | I102: 0 | J102: 0.03833240803 | K102: 0.02237569477
A103: 24 | B103: Total Current Uniform Margin Melded Rate per Therm | F103: =SUM(F99:F102) -> 0.4153585914 | G103: 0.6017807252 | H103: 0.1994752426 | I103: 0 | J103: 0.1456089402 | K103: 0.08634620917
A105: 25 | B105: Margin to Cost Ratio at Current Rates | F105: =F80/F96 -> 1 | G105: =G80/G96 -> 0.9163958507 | H105: =H80/H96 -> 1.562531827 | I105: 0.5193111402 | J105: =J80/J96 -> 1.401260679 | K105: 1.052360105
B108: Functional Cost Components at Proposed Rates
A109: 26 | B109: Production | F109: =SUM(G109:K109) -> 1048055.494 | G109: 707726.0992 | H109: 301299.5138 | I109: 0 | J109: 5207.547315 | K109: 33822.33363
A110: 27 | B110: Underground Storage | F110: =SUM(G110:K110) -> 4929007.663 | G110: 2735213.471 | H110: 2066393.248 | I110: 0 | J110: 32333.35278 | K110: 95067.59085
A111: 28 | B111: Distribution | F111: =SUM(G111:K111) -> 62637507.26 | G111: 46710149.49 | H111: 13105085.95 | I111: 0.01726051211 | J111: 141105.5892 | K111: 2681166.219
A112: 29 | B112: Common | F112: =SUM(G112:K112) -> 36307429.6 | G112: 30981726.74 | H112: 4394778.264 | I112: 0.007870839095 | J112: 50383.52949 | K112: 880541.0632
A113: 30 | B113: Total Proposed Rate Revenue | F113: =SUM(F109:F112) -> 104922000 | G113: 81134815.8 | H113: 19867556.98 | I113: 0.0251313512 | J113: 229030.0187 | K113: 3690597.207
A114: 31 | B114: Exclude Cost of Gas w / Revenue Exp. | F114: =SUM(G114:K114) -> 0 | G114: 0 | H114: 0 | I114: 0 | J114: 0 | K114: 0
A115: 32 | B115: Total Margin Revenue at Proposed Rates | F115: =F113-F114 -> 104922000 | G115: 81134815.8 | H115: 19867556.98 | I115: 0.0251313512 | J115: 229030.0187 | K115: 3690597.207
B117: Margin per Therm at Proposed Rates
A118: 33 | B118: Production | F118: 0.004732395378 | G118: 0.005486845153 | H118: 0.005391431992 | I118: 0 | J118: 0.005285417369 | K118: 0.0009498538088
A119: 34 | B119: Underground Storage | F119: 0.02225646754 | G119: 0.02120550986 | H119: 0.03697589328 | I119: 0 | J119: 0.03281684333 | K119: 0.00266984278
A120: 35 | B120: Distribution | F120: 0.282833735 | G120: 0.3621335395 | H120: 0.2345014726 | I120: 0 | J120: 0.1432155844 | K120: 0.07529687256
A121: 36 | B121: Common | F121: 0.1639427617 | G121: 0.2401945292 | H121: 0.07863984856 | I121: 0 | J121: 0.05113692988 | K121: 0.02472878695
A122: 37 | B122: Total Proposed Margin Melded Rate per Therm | F122: =SUM(F118:F121) -> 0.4737653596 | G122: 0.6290204237 | H122: 0.3555086464 | I122: 0 | J122: 0.2324547749 | K122: 0.1036453561
B124: Functional Cost Components at Uniform Proposed Return
A125: 38 | B125: Production | F125: =SUM(G125:K125) -> 1048055.494 | G125: 707726.0992 | H125: 301299.5138 | I125: 0 | J125: 5207.547315 | K125: 33822.33363
A126: 39 | B126: Underground Storage | F126: =SUM(G126:K126) -> 4497289.526 | G126: 3055924.8 | H126: 1324019.724 | I126: 0 | J126: 23342.86145 | K126: 94002.14053
A127: 40 | B127: Distribution | F127: =SUM(G127:K127) -> 62307389.39 | G127: 51464976.41 | H127: 8097266.961 | I127: 0.03533099112 | J127: 98418.16995 | K127: 2646727.813
A128: 41 | B128: Common | F128: =SUM(G128:K128) -> 37069265.64 | G128: 32806179.78 | H128: 3346704.871 | I128: 0.01102642262 | J128: 41441.05987 | K128: 874939.9104
A129: 42 | B129: Total Uniform Proposed Cost | F129: =SUM(F125:F128) -> 104922000 | G129: 88034807.09 | H129: 13069291.07 | I129: 0.04635741374 | J129: 168409.6386 | K129: 3649492.198
A130: 43 | B130: Exclude Cost of Gas w / Revenue Exp. | F130: =SUM(G130:K130) -> 0 | G130: 0 | H130: 0 | I130: 0 | J130: 0 | K130: 0
A131: 44 | B131: Total Uniform Proposed Margin | F131: =F129-F130 -> 104922000 | G131: 88034807.09 | H131: 13069291.07 | I131: 0.04635741374 | J131: 168409.6386 | K131: 3649492.198
B133: Margin per Therm at Uniform Proposed Return
A134: 45 | B134: Production | F134: 0.004732395378 | G134: 0.005486845153 | H134: 0.005391431992 | I134: 0 | J134: 0.005285417369 | K134: 0.0009498538088
A135: 46 | B135: Underground Storage | F135: 0.02030708516 | G135: 0.02369191443 | H135: 0.02369191443 | I135: 0 | J135: 0.02369191443 | K135: 0.002639921071
A136: 47 | B136: Distribution | F136: 0.281343119 | G136: 0.3989966693 | H136: 0.144891917 | I136: 0 | J136: 0.09988984706 | K136: 0.07432971721
A137: 48 | B137: Common | F137: 0.1673827601 | G137: 0.2543391133 | H137: 0.05988569808 | I137: 0 | J137: 0.04206074077 | K137: 0.02457148627
A138: 49 | B138: Total Proposed Uniform Margin Melded Rate per Therm | F138: =SUM(F134:F137) -> 0.4737653597 | G138: 0.6825145422 | H138: 0.2338609615 | I138: 0 | J138: 0.1709279196 | K138: 0.1024909784
A140: 50 | B140: Margin to Cost Ratio at Proposed Rates | F140: =F115/F131 -> 0.9999999998 | G140: =G115/G131 -> 0.9216220093 | H140: 1.520170977 | I140: 0.5421215114 | J140: 1.359957902 | K140: 1.011263213
A142: 51 | B142: Current Margin to Proposed Cost Ratio | F142: =F80/F131 -> 0.8767179427 | G142: =G80/G131 -> 0.8079964976 | H142: =H80/H131 -> 1.332785144 | I142: 0.4390617504 | J142: 1.193696634 | K142: 0.8865883337
K144: Page 2 of 4
B145: =B3 -> Sumcost | C145: =C3 -> AVISTA UTILITIES | I145: =I3 -> Natural Gas Utility | J145: =J3 -> Natural Gas Utility
B146: =B4 -> Company Base Case UG-19____ | C146: Summary by Classification with Unit Cost Analysis | I146: =I4 -> Washington Jurisdiction | J146: =J4 -> Washington Jurisdiction
C147: =C5 -> For the Twelve Months Ended December 31, 2018 | K147: =K5 -> 
B149: =B7 -> (b) | C149: (c) | D149: (d) | E149: (e) | F149: (f) | G149: (g) | H149: (h) | I149: (i) | J149: (i) | K149: (j)
F150: =F8 ->  | G150: General | H150: Large General | I150: High Load Factor | J150: Interruptible | K150: Transportation
F151: System | G151: Service | H151: Service | I151: Lg. Gen. Service | J151: Service | K151: Service
B152: =B10 -> Description | F152: Total | G152: Sch 101 | H152: Sch 111/112 | I152: Sch 121/122 | J152: Sch 131/132 | K152: Sch 146
B154: Cost by Classification at Current Return by Schedule
A155: 1 | B155: Commodity | F155: =SUM(G155:K155) -> 19135183.56 | G155: 10161826.76 | H155: 7661048.563 | I155: 0 | J155: 85171.21809 | K155: 1227137.02
A156: 2 | B156: Demand | F156: =SUM(G156:K156) -> 18798753.16 | G156: 10218386.3 | H156: 6724269.857 | I156: 0 | J156: 92825.52738 | K156: 1763271.48
A157: 3 | B157: Customer | F157: =SUM(G157:K157) -> 54053063.25 | G157: 50751602.69 | H157: 3033238.558 | I157: 0.02035376722 | J157: 23033.27328 | K157: 245188.7062
A158: 4 | B158: Total Current Rate Revenue | F158: =SUM(F155:F157) -> 91986999.98 | G158: 71131815.76 | H158: 17418556.98 | I158: 0.02035376722 | J158: 201030.0187 | K158: 3235597.207
B160: Revenue per Therm at Current Rates
A161: 5 | B161: Commodity | F161: 0.08640311012 | G161: 0.07878241311 | H161: 0.1370862561 | I161: 0 | J161: 0.08644480947 | K161: 0.0344624586
A162: 6 | B162: Demand | F162: 0.08488399049 | G162: 0.07922090678 | H162: 0.1203236048 | I162: 0 | J162: 0.09421357599 | K162: 0.0495190589
A163: 7 | B163: Customer | F163: 0.2440714907 | G163: 0.3934660394 | H163: 0.05427655425 | I163: 0 | J163: 0.02337769689 | K163: 0.006885788218
A164: 8 | B164: Total Revenue per Therm at Current Rates | F164: =SUM(F161:F163) -> 0.4153585913 | G164: 0.5514693593 | H164: 0.3116864152 | I164: 0 | J164: 0.2040360823 | K164: 0.09086730572
B166: Cost per Unit at Current Rates
A167: 9 | B167: Commodity Cost per Therm | F167: 0.08640311012 | G167: 0.07878241311 | H167: 0.1370862561 | I167: 0 | J167: 0.08644480947 | K167: 0.0344624586
A168: 10 | B168: Demand Cost per Peak Day Therms | F168: 11.86484171 | G168: 9.691755987 | H168: 18.04313743 | I168: 0 | J168: 15.98946185 | K168: 11.63204106
A169: 11 | B169: Customer Cost per Customer per Month | F169: 27.31504667 | G169: 26.14047561 | H169: 82.25508618 | I169: 2.035376722 | J169: 959.7197199 | K169: 510.8098045
B171: Cost by Classification at Uniform Current Return
A172: 12 | B172: Commodity | F172: =SUM(G172:K172) -> 17519330.24 | G172: 11368995 | H172: 4920432.778 | I172: 0 | J172: 62231.05504 | K172: 1167671.406
A173: 13 | B173: Demand | F173: =SUM(G173:K173) -> 17476221.82 | G173: 11629480.03 | H173: 4110678.662 | I173: 0 | J173: 64034.50105 | K173: 1672028.625
A174: 14 | B174: Customer | F174: =SUM(G174:K174) -> 56991447.9 | G174: 54622801.52 | H174: 2116537.957 | I174: 0.03919378124 | J174: 17198.12755 | K174: 234910.2592
A175: 15 | B175: Total Uniform Current Cost | F175: =SUM(F172:F174) -> 91986999.96 | G175: 77621276.55 | H175: 11147649.4 | I175: 0.03919378124 | J175: 143463.6836 | K175: 3074610.29
B177: Cost per Therm at Current Return
A178: 16 | B178: Commodity | F178: 0.07910687737 | G178: 0.08814132355 | H178: 0.0880458729 | I178: 0 | J178: 0.06316161512 | K178: 0.03279244845
A179: 17 | B179: Demand | F179: 0.07891222539 | G179: 0.09016080686 | H179: 0.07355619055 | I179: 0 | J179: 0.06499202861 | K179: 0.04695662858
A180: 18 | B180: Customer | F180: 0.2573394884 | G180: 0.4234785945 | H180: 0.03787317913 | I180: 0 | J180: 0.01745529643 | K180: 0.006597132146
A181: 19 | B181: Total Cost per Therm at Current Return | F181: =SUM(F178:F180) -> 0.4153585912 | G181: 0.6017807249 | H181: 0.1994752426 | I181: 0 | J181: 0.1456089402 | K181: 0.08634620917
B183: Cost per Unit at Uniform Current Return
A184: 20 | B184: Commodity Cost per Therm | F184: 0.07910687737 | G184: 0.08814132355 | H184: 0.0880458729 | I184: 0 | J184: 0.06316161512 | K184: 0.03279244845
A185: 21 | B185: Demand Cost per Peak Day Therms | F185: 11.03012544 | G185: 11.03012544 | H185: 11.03012544 | I185: 0 | J185: 11.03012544 | K185: 11.03012544
A186: 22 | B186: Customer Cost per Customer per Month | F186: 28.79992299 | G186: 28.13440237 | H186: 57.39608302 | I186: 3.919378124 | J186: 716.5886478 | K186: 489.3963734
A188: 23 | B188: Margin to Cost Ratio at Current Rates | F188: =F158/F175 -> 1 | G188: 0.9163958507 | H188: 1.562531827 | I188: 0.5193111402 | J188: 1.401260679 | K188: 1.052360105
B191: Cost by Classification at Proposed Return by Schedule
A192: 24 | B192: Commodity | F192: =SUM(G192:K192) -> 22246641.06 | G192: 12023788.7 | H192: 8731332.013 | I192: 0 | J192: 96327.21992 | K192: 1395193.121
A193: 25 | B193: Demand | F193: =SUM(G193:K193) -> 22268727.35 | G193: 12395539.28 | H193: 7745175.291 | I193: 0 | J193: 106832.3808 | K193: 2021180.398
A194: 26 | B194: Customer | F194: =SUM(G194:K194) -> 60406631.58 | G194: 56715487.77 | H194: 3391049.674 | I194: 0.0251313512 | J194: 25870.41804 | K194: 274223.6881
A195: 27 | B195: Total Proposed Rate Revenue | F195: =SUM(F192:F194) -> 104922000 | G195: 81134815.76 | H195: 19867556.98 | I195: 0.0251313512 | J195: 229030.0187 | K195: 3690597.207
B197: Revenue per Therm at Proposed Rates
A198: 28 | B198: Commodity | F198: 0.1004526019 | G198: 0.09321779549 | H198: 0.1562378318 | I198: 0 | J198: 0.09776763042 | K198: 0.03918208348
A199: 29 | B199: Demand | F199: 0.1005523305 | G199: 0.09609989611 | H199: 0.1385916138 | I199: 0 | J199: 0.1084298782 | K199: 0.05676207679
A200: 30 | B200: Customer | F200: 0.272760427 | G200: 0.4397027318 | H200: 0.06067920082 | I200: 0 | J200: 0.02625726634 | K200: 0.007701195827
A201: 31 | B201: Total Revenue per Therm at Proposed Rates | F201: =SUM(F198:F200) -> 0.4737653594 | G201: 0.6290204234 | H201: 0.3555086464 | I201: 0 | J201: 0.2324547749 | K201: 0.1036453561
B203: Cost per Unit at Proposed Rates
A204: 32 | B204: Commodity Cost per Therm | F204: 0.1004526019 | G204: 0.09321779549 | H204: 0.1562378318 | I204: 0 | J204: 0.09776763042 | K204: 0.03918208348
A205: 33 | B205: Demand Cost per Peak Day Therms | F205: 14.05491751 | G205: 11.7567039 | H205: 20.78251843 | I205: 0 | J205: 18.4021823 | K205: 13.33342803
A206: 34 | B206: Customer Cost per Customer per Month | F206: 30.52574381 | G206: 29.21227599 | H206: 91.95817535 | I206: 2.51313512 | J206: 1077.934085 | K206: 571.2993503
B208: Cost by Classification at Uniform Proposed Return
A209: 35 | B209: Commodity | F209: =SUM(G209:K209) -> 20519744.81 | G209: 13307323.74 | H209: 5760241.366 | I209: 0 | J209: 72170.02106 | K209: 1380009.684
A210: 36 | B210: Demand | F210: =SUM(G210:K210) -> 20882089.01 | G210: 13895900.37 | H210: 4911791.496 | I210: 0 | J210: 76513.915 | K210: 1997883.235
A211: 37 | B211: Customer | F211: =SUM(G211:K211) -> 63520166.17 | G211: 60831582.94 | H211: 2397258.208 | I211: 0.04635741374 | J211: 19725.70252 | K211: 271599.2783
A212: 38 | B212: Total Uniform Proposed Cost | F212: =SUM(F209:F211) -> 104922000 | G212: 88034807.05 | H212: 13069291.07 | I212: 0.04635741374 | J212: 168409.6386 | K212: 3649492.198
B214: Cost per Therm at Proposed Return
A215: 39 | B215: Commodity | F215: 0.09265496539 | G215: 0.103168761 | H215: 0.1030733478 | I215: 0 | J215: 0.07324920155 | K215: 0.03875567751
A216: 40 | B216: Demand | F216: 0.09429109632 | G216: 0.1077318664 | H216: 0.08789124644 | I216: 0 | J216: 0.07765805107 | K216: 0.05610780796
A217: 41 | B217: Customer | F217: 0.2868192978 | G217: 0.4716139145 | H217: 0.04289636725 | I217: 0 | J217: 0.02002066701 | K217: 0.007627492879
A218: 42 | B218: Total Cost per Therm at Proposed Return | F218: =SUM(F215:F217) -> 0.4737653595 | G218: 0.6825145419 | H218: 0.2338609615 | I218: 0 | J218: 0.1709279196 | K218: 0.1024909784
B220: Cost per Unit at Uniform Proposed Return
A221: 43 | B221: Commodity Cost per Therm | F221: 0.09265496539 | G221: 0.103168761 | H221: 0.1030733478 | I221: 0 | J221: 0.07324920155 | K221: 0.03875567751
A222: 44 | B222: Demand Cost per Peak Day Therms | F222: 13.17974009 | G222: 13.17974009 | H222: 13.17974009 | I222: 0 | J222: 13.17974009 | K222: 13.17974009
A223: 45 | B223: Customer Cost per Customer per Month | F223: 32.09912999 | G223: 31.33234077 | H223: 65.00862913 | I223: 4.635741374 | J223: 821.9042718 | K223: 565.8318297
A225: 46 | B225: Margin to Cost Ratio at Proposed Rates | F225: =F195/F212 -> 0.9999999998 | G225: 0.9216220093 | H225: 1.520170977 | I225: 0.5421215114 | J225: 1.359957902 | K225: 1.011263213
A227: 47 | B227: Current Revenue to Proposed Cost Ratio | F227: =F158/F212 -> 0.8767179427 | G227: =G158/G212 -> 0.8079964975 | H227: =H158/H212 -> 1.332785144 | I227: 0.4390617504 | J227: 1.193696634 | K227: 0.8865883337
K229: Page 3 of 4
B231: =$B$3 -> Sumcost | C231: =$C$3 -> AVISTA UTILITIES | I231: =$I$3 -> Natural Gas Utility | J231: =$I$3 -> Natural Gas Utility
B232: =$B$4 -> Company Base Case UG-19____ | C232: Customer Cost Analysis | I232: =$I$4 -> Washington Jurisdiction | J232: =$I$4 -> Washington Jurisdiction
C233: =$C$5 -> For the Twelve Months Ended December 31, 2018
B235: =$B$7 -> (b) | C235: =$C$7 -> (c) | D235: =$D$7 -> (d) | E235: =$E$7 -> (e) | F235: =$F$7 -> (f) | G235: =$G$7 -> (g) | H235: =$H$7 -> (h) | I235: =$I$7 -> (i) | J235: =$J$7 -> (i) | K235: =$K$7 -> (j)
F236: =$F$8 ->  | G236: =$G$8 -> General | H236: =$H$8 -> Large General | I236: =$I$8 -> High Load Factor | J236: =$J$8 -> Interruptible | K236: =$K$8 -> Transportation
F237: =$F$9 -> System | G237: =$G$9 -> Service | H237: =$H$9 -> Service | I237: =$I$9 -> Lg. Gen. Service | J237: =$J$9 -> Service | K237: =$K$9 -> Service
B238: =$B$10 -> Description | F238: =$F$10 -> Total | G238: =$G$10 -> Sch 101 | H238: =$H$10 -> Sch 111/112 | I238: =$I$10 -> Sch 121/122 | J238: =$J$10 -> Sch 131/132 | K238: =$K$10 -> Sch 146
B239: Meter, Services, Meter Reading & Billing Costs by Schedule at Requested Rate of Return
B241: Rate Base
A242: 1 | B242: Services | F242: =SUM(G242:Q242) -> 185334000 | G242: 181185028.6 | H242: 3441357.879 | I242: 0.3545062979 | J242: 8222.947128 | K242: 699390.213
A243: 2 | B243: Services Accum. Depr. | F243: =SUM(G243:Q243) -> -61747000 | G243: -60364703.52 | H243: -1146543.672 | I243: -0.1181094693 | J243: -2739.60696 | K243: -233013.0871
A244: 3 | B244: Total Services | F244: =SUM(F242:F243) -> 123587000 | G244: =SUM(G242:G243) -> 120820325.1 | H244: 2294814.207 | I244: 0.2363968286 | J244: 5483.340168 | K244: 466377.1259
A246: 4 | B246: Meters | F246: =SUM(G246:Q246) -> 49799000 | G246: 43460404.05 | H246: 5673579.322 | I246: 0 | J246: 63405.76829 | K246: 601610.8617
A247: 5 | B247: Meters Accum. Depr. | F247: =SUM(G247:Q247) -> -11217000 | G247: -9789259.869 | H247: -1277948.137 | I247: 0 | J247: -14281.86315 | K247: -135510.1314
A248: 6 | B248: Total Meters | F248: =SUM(F246:F247) -> 38582000 | G248: =SUM(G246:G247) -> 33671144.18 | H248: 4395631.186 | I248: 0 | J248: 49123.90514 | K248: 466100.7303
... 25 more rows
